bitfinex-derivatives/quotes_BTCF0:USTF0_20240814
["timestamp","ask_amount","ask_price","bid_price","bid_amount"]
[1723594824994,0.005,60593.0,60592.0,0.00144658]
[1723594826389,0.005,60593.0,60592.0,0.06743758]
[1723594826580,0.005,60593.0,60592.0,0.11663758]
[1723594826581,0.004,60593.0,60592.0,0.11663758]
[1723594826778,0.004,60593.0,60592.0,0.16223758]
[1723594830080,0.06999,60593.0,60592.0,0.00144658]
[1723594830291,0.43079,60593.0,60592.0,0.00144658]
[1723594830681,0.44087443,60593.0,60592.0,0.00144658]
[1723594831990,0.43987443,60593.0,60592.0,0.00144658]
[1723594832189,0.43687443,60593.0,60592.0,0.00144658]
[1723594832387,0.43987443,60593.0,60592.0,0.00144658]
[1723594832588,0.42979,60593.0,60592.0,0.00144658]
[1723594833299,0.3638,60593.0,60592.0,0.00144658]
[1723594833484,0.003,60593.0,60592.0,0.00144658]
[1723594834292,0.07621793,60594.0,60592.0,0.00144658]
[1723594834591,0.43079,60593.0,60592.0,0.00144658]
[1723594834784,0.47589,60593.0,60592.0,0.00044658]
[1723594834988,0.47589,60593.0,60592.0,0.00144658]
[1723594835388,0.47189,60593.0,60592.0,0.00044658]
[1723594835590,0.47189,60593.0,60592.0,0.00144658]
[1723594836201,0.42679,60593.0,60592.0,0.00144658]
[1723594837385,0.3678,60593.0,60592.0,0.00144658]
[1723594838292,0.007,60593.0,60592.0,0.00144658]
[1723594838996,0.07299,60593.0,60592.0,0.00144658]
[1723594841798,0.11859,60593.0,60592.0,0.00144658]
[1723594842489,0.33082524,60593.0,60592.0,0.00144658]
[1723594842997,0.39681524,60593.0,60592.0,0.00144658]
[1723594843199,0.065997,60587.0,60586.0,0.3608]
[1723594844096,0.0661689,60587.0,60586.0,0.3608]
[1723594844703,0.0671689,60587.0,60586.0,0.3608]
[1723594845007,0.06708921,60587.0,60586.0,0.47585547]
[1723594845297,0.0011719,60587.0,60586.0,0.426798]
[1723594845495,0.0011719,60587.0,60586.0,0.4922382]
[1723594846101,0.0011719,60587.0,60586.0,0.426798]
[1723594847204,0.0011719,60587.0,60586.0,0.4922382]
[1723594848206,0.0011719,60587.0,60586.0,0.426798]
[1723594848393,0.06591731,60591.0,60586.0,0.426798]
[1723594848394,0.06591731,60591.0,60590.0,0.065994]
[1723594848593,0.00024749,60593.0,60590.0,0.00820223]
[1723594848594,0.06591731,60592.0,60590.0,0.00820223]
[1723594848795,0.06591731,60592.0,60591.0,0.4091]
[1723594849003,0.06591731,60592.0,60591.0,0.41728407]
[1723594849308,0.06591731,60592.0,60591.0,0.4091]
[1723594849496,0.06591731,60592.0,60591.0,0.475093]
[1723594849693,0.00024749,60593.0,60592.0,0.065991]
[1723594849901,0.00024749,60593.0,60592.0,0.721111]
[1723594850098,0.00226659,60598.0,60592.0,0.721111]
[1723594850099,0.08234259,60606.0,60605.0,0.065977]
[1723594850403,0.08234259,60613.0,60609.0,0.065973]
[1723594850607,0.08234259,60614.0,60609.0,0.065973]
[1723594850899,0.06597,60613.0,60610.0,0.065972]
[1723594851606,0.07297,60613.0,60610.0,0.065972]
[1723594851811,0.08697,60613.0,60610.0,0.065972]
[1723594852306,0.08797,60613.0,60610.0,0.065972]
[1723594853107,0.07397,60613.0,60610.0,0.065972]
[1723594853308,0.08797,60613.0,60610.0,0.065972]
[1723594853998,0.022,60613.0,60612.0,0.42677]
[1723594855107,0.022,60613.0,60612.0,1.47173]
[1723594855610,0.024,60613.0,60612.0,1.47173]
[1723594856701,0.024,60613.0,60612.0,1.32173]
[1723594857109,0.024,60613.0,60612.0,0.92173]
[1723594858304,0.024,60613.0,60612.0,1.32173]
[1723594859010,0.024,60613.0,60612.0,0.92173]
[1723594859908,0.024,60613.0,60612.0,0.42677]
[1723594860112,0.024,60613.0,60612.0,1.32173]
[1723594860413,0.024,60613.0,60612.0,1.49173]
[1723594862909,0.024,60613.0,60612.0,1.50164976]
[1723594863413,0.065941,60639.0,60617.0,0.2852]
[1723594863610,0.065941,60639.0,60631.0,0.646]
[1723594863814,0.065941,60639.0,60632.0,0.0451]
[1723594864011,0.065942,60638.0,60633.0,0.065947]
[1723594864402,0.5042,60646.0,60636.0,0.3608]
[1723594864403,0.065937,60643.0,60636.0,0.3608]
[1723594864607,0.009,60639.0,60637.0,0.2852]
[1723594864814,0.009,60639.0,60638.0,0.065941]
[1723594865411,0.009,60639.0,60637.0,0.2852]
[1723594865412,0.00024749,60642.0,60641.0,0.065938]
[1723594866315,0.00024749,60642.0,60641.0,0.426738]
[1723594867118,0.01324749,60642.0,60641.0,0.427738]
[1723594867811,0.01324749,60642.0,60641.0,0.428738]
[1723594868017,0.02124749,60642.0,60641.0,0.428738]
[1723594868722,0.02124749,60642.0,60641.0,1.493458]
[1723594869319,0.02124749,60642.0,60641.0,0.428738]
[1723594870719,0.02124749,60642.0,60641.0,1.493458]
[1723594870920,0.02124749,60642.0,60641.0,1.093458]
[1723594873323,0.02124749,60642.0,60641.0,1.493458]
[1723594874013,0.02124749,60642.0,60641.0,1.093458]
[1723594874209,0.02124749,60642.0,60641.0,1.493458]
[1723594874413,0.02124749,60642.0,60641.0,1.093458]
[1723594874615,0.02124749,60642.0,60641.0,1.493458]
[1723594875016,0.01624749,60642.0,60641.0,1.492458]
[1723594875420,0.00324749,60642.0,60641.0,1.491458]
[1723594875620,0.01424749,60642.0,60641.0,1.492458]
[1723594878229,0.01424749,60642.0,60641.0,1.59264546]
[1723594879026,0.065922,60656.0,60650.0,0.065927]
[1723594879229,0.065922,60656.0,60655.0,0.3608]
[1723594879621,0.01025484,60657.0,60655.0,0.3608]
[1723594879826,0.065918,60660.0,60655.0,0.3608]
[1723594880034,0.095918,60660.0,60655.0,0.3608]
[1723594880430,0.013,60656.0,60655.0,0.3608]
[1723594880736,0.025,60656.0,60655.0,0.3618]
[1723594880919,0.025,60656.0,60655.0,0.427723]
[1723594881120,0.013,60656.0,60655.0,0.427723]
[1723594881730,0.025,60656.0,60655.0,0.427723]
[1723594881923,0.012,60656.0,60655.0,0.427723]
[1723594882128,0.012,60656.0,60655.0,0.428723]
[1723594883439,0.012,60656.0,60655.0,0.588723]
[1723594887544,0.07459008,60680.0,60655.0,1.02298746]
[1723594887836,0.5028,60687.0,60679.0,0.646]
[1723594888031,0.3608,60698.0,60685.0,0.2852]
[1723594888229,0.142,60697.0,60693.0,0.2852]
[1723594888936,0.142,60697.0,60693.0,0.646]
[1723594889527,0.144,60697.0,60693.0,0.647]
[1723594890536,0.144,60697.0,60693.0,0.648]
[1723594890936,0.0981,60697.0,60693.0,0.648]
[1723594892335,0.05,60697.0,60693.0,0.648]
[1723594892833,0.002,60697.0,60693.0,0.648]
[1723594893230,0.002,60697.0,60693.0,0.713881]
[1723594893843,0.002,60697.0,60694.0,0.06588]
[1723594894832,0.01027048,60701.0,60694.0,0.06588]
[1723594895036,0.002,60697.0,60694.0,0.06688]
[1723594895236,0.002,60697.0,60694.0,0.06788]
[1723594895440,0.002,60697.0,60694.0,0.002]
[1723594896036,0.065876,60698.0,60694.0,0.002]
[1723594896546,0.01227048,60701.0,60694.0,0.002]
[1723594897039,0.065879,60696.0,60694.0,0.002]
[1723594897241,0.065879,60696.0,60694.0,0.001]
[1723594897444,0.01227048,60701.0,60694.0,0.002]
[1723594897445,0.065879,60695.0,60694.0,0.002]
[1723594897943,0.065879,60695.0,60689.0,0.00024728]
[1723594897944,1.25508,60695.0,60689.0,0.00024728]
[1723594898144,1.25508,60695.0,60676.0,0.4267]
[1723594898145,0.3608,60690.0,60676.0,0.4267]
[1723594898453,0.06589,60685.0,60678.0,0.065897]
[1723594898645,0.06589,60685.0,60680.0,0.2852]
[1723594899346,0.065892,60684.0,60680.0,0.2852]
[1723594900050,0.065893,60683.0,60680.0,0.2852]
[1723594900345,0.065893,60683.0,60677.0,0.00024728]
[1723594900346,0.065898,60678.0,60677.0,0.00024728]
[1723594901539,0.003,60678.0,60677.0,0.00024728]
[1723594901735,0.003,60678.0,60677.0,0.00624728]
[1723594902847,0.065906,60671.0,60665.0,0.065912]
[1723594903045,0.3638,60678.0,60665.0,0.065912]
[1723594903451,0.065905,60672.0,60665.0,0.065912]
[1723594904143,0.065905,60672.0,60668.0,0.007]
[1723594904744,0.065905,60672.0,60666.0,0.065911]
[1723594905644,0.065905,60672.0,60668.0,0.01]
[1723594906047,0.148,60674.0,60668.0,0.075908]
[1723594906652,0.213903,60674.0,60668.0,0.075908]
[1723594906851,0.213903,60674.0,60668.0,0.076908]
[1723594907455,0.213903,60674.0,60668.0,0.066908]
[1723594907645,0.001,60672.0,60668.0,0.066908]
[1723594908050,0.22381862,60674.0,60668.0,0.066908]
[1723594908251,0.22481862,60674.0,60668.0,0.075908]
[1723594908954,0.22481862,60674.0,60669.0,0.3608]
[1723594909952,0.001,60672.0,60669.0,0.3608]
[1723594910352,0.22381862,60674.0,60669.0,0.3608]
[1723594910556,0.22481862,60674.0,60669.0,0.3688]
[1723594910747,0.15891562,60674.0,60669.0,0.3688]
[1723594910944,0.15891562,60674.0,60663.0,0.714193]
[1723594910945,0.426707,60670.0,60663.0,0.00228]
[1723594911143,0.426707,60670.0,60662.0,0.00024728]
[1723594911144,0.065914,60663.0,60662.0,0.00024728]
[1723594911553,0.560434,60663.0,60662.0,0.00024728]
[1723594912744,0.960434,60663.0,60662.0,0.00024728]
[1723594913460,0.560434,60663.0,60662.0,0.00024728]
[1723594913651,0.065914,60663.0,60662.0,0.00024728]
[1723594913846,0.066914,60663.0,60662.0,0.01424728]
[1723594914357,0.066914,60663.0,60662.0,0.01324728]
[1723594916161,0.561434,60663.0,60662.0,0.01324728]
[1723594916354,0.066914,60663.0,60662.0,0.01324728]
[1723594918167,0.001,60663.0,60662.0,0.01324728]
[1723594918856,0.001,60663.0,60662.0,0.07916228]
[1723594924364,0.001,60663.0,60662.0,0.74368228]
[1723594924570,0.01010547,60675.0,60674.0,0.065902]
[1723594924768,0.00024728,60675.0,60674.0,0.566702]
[1723594924971,0.00024728,60675.0,60674.0,1.461142]
[1723594925158,0.06546633,60688.0,60679.0,0.065897]
[1723594925363,0.06589,60686.0,60679.0,0.426697]
[1723594925560,0.06546633,60690.0,60686.0,0.065888]
[1723594925762,0.426683,60692.0,60691.0,0.065884]
[1723594925763,0.3608,60692.0,60691.0,0.065884]
[1723594925965,0.45965302,60703.0,60693.0,0.065881]
[1723594925966,0.06546633,60697.0,60693.0,0.065881]
[1723594926270,0.42626633,60698.0,60690.0,0.096]
[1723594926465,0.42651361,60698.0,60690.0,0.096]
[1723594926969,0.42651361,60698.0,60691.0,0.065883]
[1723594927159,0.012,60697.0,60693.0,0.001]
[1723594927366,0.012,60697.0,60696.0,0.3608]
[1723594927774,0.01224728,60698.0,60696.0,0.3608]
[1723594928370,0.065881,60694.0,60693.0,0.001]
[1723594929369,0.065879,60696.0,60693.0,0.001]
[1723594929569,0.06588,60695.0,60693.0,0.001]
[1723594929873,0.06588,60695.0,60690.0,0.3608]
[1723594930061,0.06546633,60696.0,60690.0,0.3608]
[1723594930371,0.37604728,60698.0,60690.0,0.3608]
[1723594930372,0.065882,60693.0,60690.0,0.3608]
[1723594930769,0.012,60694.0,60690.0,0.3608]
[1723594931075,0.012,60695.0,60690.0,0.3618]
[1723594931575,0.003,60694.0,60693.0,0.001]
[1723594932160,0.003,60694.0,60690.0,0.3618]
[1723594932377,0.08088,60695.0,60690.0,0.002]
[1723594933082,0.065881,60694.0,60690.0,0.001]
[1723594933265,0.065884,60691.0,60690.0,0.002]
[1723594933665,0.065884,60691.0,60690.0,0.001]
[1723594934870,0.065884,60691.0,60690.0,0.002]
[1723594934871,0.080884,60691.0,60690.0,0.002]
[1723594936272,0.015,60691.0,60690.0,0.002]
[1723594937077,0.015,60691.0,60690.0,0.2872]
[1723594937278,0.015,60691.0,60690.0,0.002]
[1723594937468,0.080884,60691.0,60690.0,0.002]
[1723594938168,0.015,60691.0,60690.0,0.353085]
[1723594938764,0.015,60691.0,60690.0,0.067885]
[1723594938969,0.015,60691.0,60690.0,0.002]
[1723594940469,0.080884,60691.0,60690.0,0.002]
[1723594942871,0.09090788,60691.0,60690.0,0.002]
[1723594949577,0.15637421,60691.0,60690.0,0.002]
[1723594949768,0.09090788,60691.0,60690.0,0.002]
[1723594950879,0.15657332,60691.0,60690.0,0.002]
[1723594951470,0.09090788,60691.0,60690.0,0.002]
[1723594951881,0.080884,60691.0,60690.0,0.002]
[1723594952188,0.015,60691.0,60690.0,0.2872]
[1723594952386,0.015,60691.0,60690.0,0.353085]
[1723594953291,0.015,60691.0,60690.0,0.002]
[1723594955282,0.16275469,60691.0,60690.0,0.002]
[1723594955588,0.20845469,60691.0,60690.0,0.002]
[1723594956382,0.126584,60691.0,60690.0,0.002]
[1723594957188,0.15328448,60691.0,60690.0,0.002]
[1723594958787,0.126584,60691.0,60690.0,0.002]
[1723594959274,0.15328448,60691.0,60690.0,0.002]
[1723594961075,0.065887,60689.0,60685.0,0.00024728]
[1723594961279,0.08233228,60686.0,60685.0,0.00024728]
[1723594962288,0.08233228,60686.0,60685.0,0.00124728]
[1723594963090,0.09633228,60686.0,60685.0,0.00224728]
[1723594965592,0.014,60686.0,60685.0,0.00224728]
[1723594965794,0.02400835,60686.0,60685.0,0.00224728]
[1723594966005,0.10634063,60686.0,60685.0,0.00224728]
[1723594966796,0.17222963,60686.0,60685.0,0.00224728]
[1723594967687,0.10634063,60686.0,60685.0,0.00224728]
[1723594967887,0.17222963,60686.0,60685.0,0.00224728]
[1723594968089,0.17222963,60686.0,60676.0,0.05136992]
[1723594968090,0.97069735,60686.0,60676.0,0.05136992]
[1723594968396,0.97069735,60686.0,60668.0,0.08224307]
[1723594968397,0.3608,60677.0,60668.0,0.04916233]
[1723594968587,0.3608,60677.0,60667.0,0.0468]
[1723594968588,0.065909,60668.0,60667.0,0.0468]
[1723594968896,0.09261629,60668.0,60667.0,0.0468]
[1723594969289,0.065918,60660.0,60654.0,0.3608]
[1723594969494,0.065919,60659.0,60654.0,0.0468]
[1723594969794,0.0822536,60660.0,60654.0,0.112724]
[1723594970003,0.06580696,60655.0,60654.0,0.112724]
[1723594970183,0.1481716,60660.0,60654.0,0.112724]
[1723594970591,0.06571385,60658.0,60654.0,0.112724]
[1723594971401,0.13163185,60660.0,60654.0,0.112724]
[1723594971698,0.003,60659.0,60654.0,0.112724]
[1723594972084,0.068919,60659.0,60654.0,0.117724]
[1723594972298,0.003,60658.0,60654.0,0.117724]
[1723594973088,0.065919,60659.0,60654.0,0.478524]
[1723594973287,0.068919,60659.0,60654.0,0.478524]
[1723594973889,0.068919,60659.0,60654.0,0.473524]
[1723594974197,0.068919,60659.0,60654.0,0.478524]
[1723594974783,0.003,60658.0,60654.0,0.478524]
[1723594974987,0.003,60658.0,60655.0,0.3608]
[1723594975687,0.06592,60658.0,60655.0,0.3608]
[1723594976500,0.065921,60657.0,60655.0,0.3608]
[1723594977700,0.065921,60657.0,60655.0,0.3648]
[1723594977999,0.069921,60657.0,60655.0,0.3648]
[1723594979997,0.069921,60657.0,60655.0,0.004]
[1723594980288,0.069921,60657.0,60655.0,0.3648]
[1723594980496,0.065922,60656.0,60655.0,0.3648]
[1723594981593,0.069922,60656.0,60655.0,0.3648]
[1723594983296,0.069922,60656.0,60655.0,0.004]
[1723594988700,0.135844,60656.0,60655.0,0.004]
[1723594988909,0.4946,60655.0,60637.0,0.4084]
[1723594989099,0.3608,60644.0,60637.0,0.0476]
[1723594990013,0.00016746,60643.0,60638.0,0.3608]
[1723594990300,0.00016746,60643.0,60637.0,0.0746]
[1723594990504,0.00016746,60643.0,60637.0,0.027]
[1723594990904,0.065941,60638.0,60637.0,0.014]
[1723594991104,0.065941,60638.0,60637.0,0.008]
[1723594992508,0.065941,60638.0,60636.0,0.2852]
[1723594992803,0.065941,60638.0,60637.0,0.006]
[1723594993298,0.066941,60638.0,60637.0,0.006]
[1723594994005,0.066941,60638.0,60636.0,0.006]
[1723594994203,0.07695669,60638.0,60636.0,0.006]
[1723594994603,0.07695669,60638.0,60637.0,0.006]
[1723594996008,0.07595669,60638.0,60636.0,0.001]
[1723594996304,0.065943,60637.0,60636.0,0.009]
[1723594996610,0.065943,60637.0,60636.0,0.001]
[1723594997208,0.065943,60637.0,60634.0,0.04724728]
[1723594997418,0.065943,60637.0,60636.0,0.006]
[1723594998108,0.066943,60637.0,60636.0,0.006]
[1723594999103,0.067943,60637.0,60636.0,0.006]
[1723595000102,0.066943,60637.0,60636.0,0.006]
[1723595000308,0.067943,60637.0,60636.0,0.006]
[1723595003206,0.06808817,60637.0,60636.0,0.006]
[1723595003415,0.065953,60627.0,60625.0,0.0465]
[1723595003624,0.00014062,60626.0,60625.0,0.0465]
[1723595003825,0.065959,60623.0,60620.0,0.065961]
[1723595004028,0.42662786,60626.0,60611.0,0.04916233]
[1723595004231,0.3608,60621.0,60611.0,0.065971]
[1723595004431,0.065967,60615.0,60611.0,0.065971]
[1723595004631,0.00018817,60614.0,60611.0,0.065971]
[1723595004828,0.06615617,60614.0,60611.0,0.065971]
[1723595005535,0.06615617,60614.0,60610.0,0.3608]
[1723595006132,0.00018817,60614.0,60610.0,0.3608]
[1723595006331,0.00018817,60614.0,60604.0,0.36096498]
[1723595006332,0.065977,60605.0,60604.0,0.00016498]
[1723595006528,0.065983,60600.0,60593.0,0.3608]
[1723595006730,0.0001506,60605.0,60593.0,0.3608]
[1723595007127,0.065985,60598.0,60593.0,0.3608]
[1723595008829,0.00039809,60605.0,60593.0,0.3608]
[1723595009030,0.00039809,60605.0,60587.0,0.065997]
[1723595009031,0.2852,60595.0,60587.0,0.065997]
[1723595009333,0.066011,60574.0,60573.0,0.3608]
[1723595009528,0.065997,60587.0,60560.0,0.04929882]
[1723595009529,0.066018,60568.0,60561.0,0.111725]
[1723595009732,0.066018,60568.0,60561.0,0.0457]
[1723595009733,0.3608,60568.0,60561.0,0.0457]
[1723595009936,0.066022,60564.0,60561.0,0.0457]
[1723595010136,0.3608,60568.0,60561.0,0.0457]
[1723595010137,0.06620747,60563.0,60561.0,0.0457]
[1723595011236,0.06620747,60563.0,60561.0,0.0597]
[1723595012130,0.06620747,60563.0,60561.0,0.0637]
[1723595012729,0.06820747,60563.0,60561.0,0.0637]
[1723595013241,0.42800747,60563.0,60561.0,0.0647]
[1723595013535,0.42900747,60563.0,60561.0,0.019]
[1723595020441,0.066024,60562.0,60561.0,0.019]
[1723595020653,0.066026,60561.0,60546.0,0.3249]
[1723595020942,0.066043,60545.0,60539.0,0.068249]
[1723595021140,0.3608,60540.0,60535.0,0.0493]
[1723595021744,0.00018529,60539.0,60535.0,0.0493]
[1723595022140,0.00018529,60539.0,60538.0,0.06605]
[1723595022646,0.00018529,60539.0,60535.0,0.0493]
[1723595023039,0.06605,60538.0,60535.0,0.0493]
[1723595023242,0.00118529,60539.0,60535.0,0.0493]
[1723595023443,0.06823429,60539.0,60538.0,0.002]
[1723595024243,0.06823429,60539.0,60535.0,0.0493]
[1723595024244,0.001,60538.0,60535.0,0.0513]
[1723595024740,0.001,60538.0,60537.0,0.426851]
[1723595025040,0.00118529,60539.0,60537.0,0.426851]
[1723595025041,0.00118529,60539.0,60538.0,0.06605]
[1723595025244,0.00018529,60539.0,60538.0,0.06605]
[1723595025840,0.00018529,60539.0,60538.0,0.96161]
[1723595026644,0.00118529,60539.0,60538.0,0.96161]
[1723595026844,0.0002477,60544.0,60543.0,0.066045]
[1723595027045,0.0002477,60544.0,60543.0,0.426845]
[1723595027946,0.00144861,60544.0,60543.0,0.426845]
[1723595028548,0.00244861,60544.0,60543.0,0.426845]
[1723595031951,0.066028,60559.0,60556.0,0.066031]
[1723595032263,0.066028,60559.0,60557.0,0.094]
[1723595032946,0.00012654,60558.0,60557.0,0.094]
[1723595034051,0.00012654,60558.0,60557.0,0.098]
[1723595035353,0.00012654,60558.0,60557.0,0.099]
[1723595035851,0.00012654,60558.0,60557.0,0.16503]
[1723595036450,0.00112654,60558.0,60557.0,0.16503]
[1723595038450,0.00112654,60558.0,60557.0,0.099]
[1723595039056,0.06715554,60558.0,60557.0,0.099]
[1723595039651,0.00112654,60558.0,60557.0,0.099]
[1723595039958,0.00112654,60558.0,60557.0,0.16503]
[1723595045965,0.06715454,60558.0,60557.0,0.054]
[1723595047564,0.066034,60553.0,60552.0,0.04941003]
[1723595047764,0.066034,60553.0,60543.0,0.50908707]
[1723595047765,0.42696736,60553.0,60543.0,0.04916233]
[1723595047961,0.42696736,60553.0,60542.0,0.0499]
[1723595047962,0.066045,60544.0,60542.0,0.0499]
[1723595048158,0.06617736,60543.0,60542.0,0.0499]
[1723595048358,0.00013236,60543.0,60542.0,0.0499]
[1723595048563,0.00013236,60543.0,60542.0,0.115946]
[1723595049159,0.00013236,60543.0,60542.0,0.0499]
[1723595049363,0.06617736,60543.0,60542.0,0.0499]
[1723595050065,0.49565236,60543.0,60538.0,0.04926801]
[1723595050261,0.6462,60540.0,60533.0,0.04926801]
[1723595050462,0.6462,60540.0,60531.0,0.066057]
[1723595050463,0.3608,60535.0,60531.0,0.066057]
[1723595050662,0.00013336,60534.0,60531.0,0.066057]
[1723595051673,0.00013336,60534.0,60533.0,0.066056]
[1723595052369,0.00013336,60534.0,60533.0,0.068056]
[1723595052772,0.00013336,60534.0,60533.0,0.11732117]
[1723595052960,0.00113336,60534.0,60533.0,0.11532117]
[1723595053163,0.00213336,60534.0,60533.0,0.068056]
[1723595053465,0.00213336,60534.0,60533.0,0.11732372]
[1723595054568,0.00213336,60534.0,60533.0,0.068056]
[1723595056073,0.00213336,60534.0,60533.0,0.428856]
[1723595056763,0.00213336,60534.0,60533.0,0.47812372]
[1723595057365,0.06593494,60549.0,60533.0,1.76959445]
[1723595057366,0.0002477,60549.0,60533.0,1.76959445]
[1723595057563,0.0002477,60549.0,60543.0,0.3608]
[1723595057761,0.0002477,60549.0,60546.0,0.066041]
[1723595057969,0.0002477,60549.0,60548.0,0.066039]
[1723595058471,0.0002477,60549.0,60548.0,0.426839]
[1723595058671,0.0012477,60549.0,60548.0,0.426839]
[1723595058863,0.066026,60561.0,60548.0,1.46551364]
[1723595059070,0.066026,60561.0,60549.0,0.0462]
[1723595059267,0.066026,60561.0,60554.0,0.066033]
[1723595059569,0.066026,60560.0,60554.0,0.066033]
[1723595060570,0.066026,60560.0,60549.0,0.0462]
[1723595060571,0.066026,60560.0,60555.0,0.066032]
[1723595061970,0.066028,60559.0,60555.0,0.066032]
[1723595062870,0.001,60560.0,60556.0,0.066031]
[1723595063077,0.001,60560.0,60555.0,0.003]
[1723595063270,0.3610477,60563.0,60555.0,0.003]
[1723595063472,0.001,60559.0,60555.0,0.003]
[1723595063674,0.001,60559.0,60555.0,0.002]
[1723595063873,0.001,60559.0,60557.0,0.066029]
[1723595064077,0.066028,60559.0,60555.0,0.002]
[1723595065371,0.067028,60559.0,60555.0,0.004]
[1723595065969,0.068028,60559.0,60555.0,0.004]
[1723595066167,0.067028,60559.0,60555.0,0.003]
[1723595066381,0.066028,60559.0,60555.0,0.003]
[1723595066571,0.067028,60559.0,60555.0,0.003]
[1723595070579,0.067028,60559.0,60555.0,0.069031]
[1723595072174,0.067028,60559.0,60558.0,0.066029]
[1723595072175,0.001,60559.0,60558.0,0.066029]
[1723595072371,0.001,60559.0,60558.0,0.236029]
[1723595072576,0.001,60559.0,60558.0,1.121429]
[1723595073081,0.06568724,60576.0,60559.0,0.49536]
[1723595073382,0.01014406,60577.0,60566.0,0.3608]
[1723595073576,0.01014406,60577.0,60567.0,0.0471]
[1723595073779,0.066006,60579.0,60574.0,0.066011]
[1723595073972,0.06568724,60580.0,60569.0,0.066016]
[1723595074179,0.42681,60575.0,60569.0,0.066016]
[1723595074799,0.42681,60575.0,60570.0,0.066015]
[1723595074989,0.3608,60575.0,60574.0,0.066011]
[1723595075285,0.3718,60575.0,60574.0,0.066011]
[1723595075474,0.3718,60575.0,60574.0,0.07407974]
[1723595075676,0.001,60575.0,60574.0,0.00806874]
[1723595075873,0.0002477,60581.0,60580.0,0.066005]
[1723595076082,0.0002477,60581.0,60580.0,0.07406023]
[1723595076281,0.3608,60589.0,60586.0,0.065997]
[1723595076482,0.3608,60589.0,60581.0,0.0485]
[1723595076687,0.3608,60589.0,60588.0,0.065996]
[1723595077480,0.06568724,60601.0,60588.0,0.85596]
[1723595077785,0.0002477,60595.0,60593.0,0.06599]
[1723595078680,0.0002477,60595.0,60588.0,0.065996]
[1723595078880,0.3608,60593.0,60588.0,0.065996]
[1723595079091,0.3608,60593.0,60583.0,0.3608]
[1723595079385,0.0152477,60595.0,60588.0,0.3608]
[1723595079688,0.0152477,60595.0,60594.0,0.065989]
[1723595080187,0.0032477,60595.0,60594.0,0.065989]
[1723595082992,0.0032477,60595.0,60594.0,0.066989]
[1723595082993,0.0272477,60595.0,60594.0,0.066989]
[1723595086290,0.0272477,60595.0,60594.0,0.236989]
[1723595087091,0.0272477,60595.0,60594.0,0.066989]
[1723595087681,0.0272477,60595.0,60594.0,0.226989]
[1723595088092,0.0272477,60595.0,60594.0,0.001]
[1723595088289,0.06599,60594.0,60575.0,0.10857786]
[1723595088489,0.066001,60583.0,60575.0,0.10018746]
[1723595088688,0.066001,60583.0,60577.0,0.066007]
[1723595088990,0.066001,60583.0,60575.0,0.39353028]
[1723595089586,0.066001,60583.0,60582.0,0.0012477]
[1723595090681,0.066001,60583.0,60582.0,0.0022477]
[1723595091390,0.072001,60583.0,60582.0,0.0022477]
[1723595091996,0.072001,60583.0,60571.0,0.426813]
[1723595091997,0.066008,60577.0,60571.0,0.3608]
[1723595092187,1.26248174,60583.0,60561.0,0.390925]
[1723595092188,0.3608,60572.0,60565.0,0.0489]
[1723595092393,0.3608,60572.0,60567.0,0.3608]
[1723595092593,0.3608,60572.0,60565.0,0.0489]
[1723595092594,0.3608,60572.0,60571.0,0.066014]
[1723595092794,0.3608,60572.0,60565.0,0.0489]
[1723595092988,0.3608,60572.0,60568.0,0.066017]
[1723595093899,0.3608,60572.0,60571.0,0.006]
[1723595094393,0.3608,60572.0,60571.0,0.072014]
[1723595094694,0.3618,60572.0,60571.0,0.066014]
[1723595095285,0.001,60572.0,60571.0,0.067014]
[1723595095491,0.0002477,60575.0,60574.0,0.066011]
[1723595095691,0.0002477,60575.0,60574.0,0.426811]
[1723595096699,0.0012477,60575.0,60574.0,0.426811]
[1723595096998,0.3608,60583.0,60579.0,0.066005]
[1723595097187,0.3608,60583.0,60580.0,0.0935]
[1723595097594,0.3608,60583.0,60582.0,0.066002]
[1723595098389,0.3638,60583.0,60582.0,0.066002]
[1723595099198,0.3638,60583.0,60582.0,0.067002]
[1723595099699,0.003,60583.0,60582.0,0.067002]
[1723595100089,0.3608,60586.0,60582.0,0.067002]
[1723595100090,0.3608,60586.0,60585.0,0.065999]
[1723595100289,0.0002477,60589.0,60588.0,0.065996]
[1723595100486,0.3608,60600.0,60599.0,0.065984]
[1723595100792,0.06568724,60605.0,60600.0,0.065982]
[1723595100793,0.065977,60605.0,60600.0,0.065982]
[1723595100991,0.3608,60607.0,60603.0,0.065979]
[1723595101886,0.3608,60607.0,60606.0,0.065976]
[1723595102396,0.001,60607.0,60606.0,0.065976]
[1723595102786,0.0662187,60611.0,60606.0,0.065976]
[1723595102991,0.001,60607.0,60606.0,0.065976]
[1723595103397,0.001,60607.0,60606.0,0.560976]
[1723595103599,0.0002477,60611.0,60610.0,0.065972]
[1723595103900,0.0002477,60611.0,60606.0,0.0022]
[1723595104093,0.0002477,60611.0,60605.0,0.00837169]
[1723595104094,0.0002477,60611.0,60605.0,0.36917169]
[1723595104291,0.0002477,60611.0,60610.0,0.065972]
[1723595104897,0.0012477,60611.0,60610.0,0.072972]
[1723595105204,0.0012477,60611.0,60610.0,0.433772]
[1723595105606,0.0022477,60611.0,60610.0,0.437772]
[1723595106701,0.0022477,60611.0,60610.0,0.438772]
[1723595107102,0.0022477,60611.0,60610.0,0.077972]
[1723595107396,0.0012477,60611.0,60610.0,0.069972]
[1723595107603,0.0012477,60611.0,60610.0,0.074972]
[1723595108293,0.0012477,60611.0,60610.0,0.075972]